bitfinex/quotes_ETHUSD_20240731
["timestamp","ask_amount","ask_price","bid_price","bid_amount"]
[1722438672306,3.01052,3321.7,3321.0,0.06021718]
[1722438672503,3.01052,3321.7,3320.9,0.602256]
[1722438672504,3.0106,3321.6,3321.1,3.01099]
[1722438672687,2.2696,3321.9,3321.1,3.01099]
[1722438672893,7.41,3322.0,3321.3,3.01079]
[1722438673140,7.41,3322.0,3321.5,3.01067]
[1722438673432,3.01087,3321.3,3320.7,3.01139]
[1722438673796,3.0107,3321.5,3320.9,3.01123]
[1722438674191,3.01045,3321.8,3321.0,3.01112]
[1722438674794,3.01062,3321.6,3320.8,3.01126]
[1722438675134,3.01062,3321.6,3320.9,3.11482064]
[1722438675293,3.01062,3321.6,3320.9,0.7162587]
[1722438675504,3.01062,3321.6,3321.0,3.01112]
[1722438675742,3.01056,3321.7,3321.2,3.01094]
[1722438675949,10.42027,3322.0,3321.4,3.01076]
[1722438676094,7.41,3322.0,3321.3,0.10357847]
[1722438676295,3.01066,3321.6,3321.1,3.01102]
[1722438676494,3.01066,3321.6,3321.2,0.10359651]
[1722438676699,3.01078,3321.4,3320.9,3.62375806]
[1722438676938,3.01101,3321.2,3321.0,0.10363259]
[1722438677119,3.01045,3321.8,3321.0,0.10363259]
[1722438677300,3.01107,3321.1,3320.5,3.01158]
[1722438677649,2.2029411,3321.9,3320.6,0.10370478]
[1722438677809,3.01124,3320.9,3320.3,3.01169]
[1722438678036,2.4242,3321.5,3320.4,0.10374087]
[1722438678379,3.01158,3320.6,3319.9,3.01205]
[1722438678660,3.01158,3320.6,3320.0,0.10042184]
[1722438678871,3.01125,3320.9,3320.3,3.01171]
[1722438679019,3.01082,3321.4,3320.5,3.01155]
[1722438679220,3.01082,3321.4,3320.4,3.01162]
[1722438679221,1.80586411,3321.4,3320.4,3.01162]
[1722438679572,3.01119,3321.0,3320.5,3.01156]
[1722438679737,3.01099,3321.2,3320.5,3.01156]
[1722438679921,3.01115,3321.0,3320.6,0.10031353]
[1722438680290,3.01099,3321.2,3320.4,3.0116]
[1722438680565,3.01105,3321.1,3320.5,3.41324095]
[1722438681071,3.01105,3321.1,3320.6,3.01148]
[1722438681242,3.01105,3321.1,3320.7,0.10052758]
[1722438681825,3.01129,3320.9,3320.3,3.01169]
[1722438682032,3.01129,3320.9,3320.4,3.11224173]
[1722438682348,3.01107,3321.1,3320.5,3.01158]
[1722438682652,3.01124,3320.9,3320.6,0.10052995]
[1722438682963,3.01107,3321.1,3320.4,3.01162]
[1722438683170,3.01107,3321.1,3320.7,0.1005119]
[1722438683381,3.01107,3321.1,3320.4,3.01162]
[1722438683524,3.0112,3321.0,3320.8,0.10049385]
[1722438683725,3.0112,3321.0,3320.4,3.01162]
[1722438684299,3.0112,3321.0,3320.5,0.100548]
[1722438684430,3.01107,3321.1,3320.5,3.112128]
[1722438684636,3.01089,3321.3,3320.7,3.01135]
[1722438684836,3.01089,3321.3,3320.8,0.10049385]
[1722438685143,3.01089,3321.3,3320.7,3.01133]
[1722438685347,3.01089,3321.3,3320.8,3.01132]
[1722438685548,5.43492,3321.5,3320.9,3.01122]
[1722438685754,7.41,3321.6,3321.2,3.01094]
[1722438685973,3.01056,3321.7,3321.1,3.01104]
[1722438686276,3.01048,3321.8,3321.2,3.11134854]
[1722438686586,3.01048,3321.8,3321.2,0.10041854]
[1722438686886,2.4176,3322.1,3321.2,0.10041854]
[1722438686887,3.01015,3322.1,3321.5,3.01067]
[1722438687193,3.01008,3322.2,3321.6,3.11093638]
[1722438687482,3.01008,3322.2,3321.6,0.10034638]
[1722438687638,3.01008,3322.2,3321.4,3.01071]
[1722438687639,5.25992,3322.6,3321.4,3.01071]
[1722438687975,3.01005,3322.2,3321.5,0.16045227]
[1722438688184,3.01023,3322.0,3321.5,0.16045227]
[1722438688351,3.01023,3322.0,3321.5,0.10024523]
[1722438688752,3.01005,3322.2,3321.5,3.17112174]
[1722438689061,3.00991,3322.4,3321.7,3.0105]
[1722438689250,3.00991,3322.4,3321.9,3.01032]
[1722438689446,3.00991,3322.4,3322.0,0.10002022]
[1722438690285,3.01014,3322.1,3321.3,3.01082]
[1722438690442,3.01014,3322.1,3321.2,0.31114585]
[1722438690443,3.01014,3322.1,3321.4,3.1108753]
[1722438690656,3.01024,3322.0,3321.4,3.1108753]
[1722438690906,3.01039,3321.9,3321.4,0.1001253]
[1722438691269,3.01043,3321.8,3321.4,0.1001253]
[1722438691468,3.01043,3321.8,3321.2,3.32202585]
[1722438691692,3.01043,3321.8,3321.3,0.10008064]
[1722438691900,3.01043,3321.8,3321.2,3.32202585]
[1722438692077,3.01043,3321.8,3321.3,0.43194453]
[1722438692279,3.01052,3321.7,3321.3,0.09974194]
[1722438692505,2.2716,3322.2,3321.0,3.01107]
[1722438692506,6.02129,3321.6,3321.0,3.01107]
[1722438692809,3.01044,3321.8,3321.3,3.01085]
[1722438693008,3.01037,3321.9,3321.4,0.60218]
[1722438693192,3.01044,3321.8,3321.4,0.09977092]
[1722438693714,3.01044,3321.8,3321.2,3.01094]
[1722438693893,3.01044,3321.8,3321.5,0.09975288]
[1722438694094,3.01044,3321.8,3321.1,3.01098]
[1722438694268,3.01044,3321.8,3321.2,3.110697]
[1722438694471,3.01034,3321.9,3321.3,3.01086]
[1722438694671,3.01048,3321.8,3321.4,0.09977092]
[1722438695013,3.01038,3321.9,3321.3,3.01086]
[1722438695208,3.01038,3321.9,3321.5,0.09975288]
[1722438695365,3.01038,3321.9,3321.4,0.09977092]
[1722438695560,3.01038,3321.9,3321.6,0.09973485]
[1722438695802,3.01038,3321.9,3321.5,0.09975288]
[1722438696008,3.01031,3322.0,3321.7,0.09971681]
[1722438696174,3.01031,3322.0,3321.6,0.09973485]
[1722438696381,3.01031,3322.0,3321.4,3.01077]
[1722438696577,3.01033,3321.9,3321.2,3.6231177]
[1722438696843,3.01059,3321.6,3321.5,0.09975288]
[1722438696994,3.01058,3321.7,3321.1,3.011]
[1722438697195,2.2716,3322.2,3321.5,0.09977797]
[1722438697196,3.01034,3321.9,3321.5,0.09977797]
[1722438697398,2.2716,3322.2,3321.1,3.01104]
[1722438697712,3.01056,3321.7,3321.2,0.09983209]
[1722438698216,3.01064,3321.6,3321.2,0.09983209]
[1722438698531,3.01086,3321.3,3320.5,3.01152]
[1722438698822,3.01014,3322.1,3320.5,3.01152]
[1722438698823,3.01101,3321.2,3320.5,3.01152]
[1722438698994,3.01115,3321.0,3320.0,5.1112]
[1722438699398,3.01115,3321.0,3320.4,3.01163]
[1722438699638,3.01115,3321.0,3320.5,0.301163]
[1722438700173,3.01136,3320.8,3320.5,0.301163]
[1722438700368,3.01136,3320.8,3320.2,3.01184]
[1722438700625,6.02275,3320.8,3320.2,3.01184]
[1722438700829,3.01136,3320.8,3320.2,3.01184]
[1722438701776,3.01158,3320.6,3319.9,3.01208]
[1722438702024,3.011,3321.2,3319.6,5.1401]
[1722438702025,6.02276,3320.8,3320.0,3.01202]
[1722438702330,3.01136,3320.8,3320.3,3.01175]
[1722438702476,3.01136,3320.8,3320.2,3.01178]
[1722438702832,3.01152,3320.6,3320.0,0.301202]
[1722438703265,3.0116,3320.5,3320.0,0.301202]
[1722438703763,3.0116,3320.5,3320.0,3.313232]
[1722438703927,3.01148,3320.7,3320.1,0.3313232]
[1722438704252,2.20361668,3321.0,3320.1,0.3313232]
[1722438704464,3.01159,3320.5,3320.1,0.3313232]
[1722438704628,3.01192,3320.2,3319.2,3.0]
[1722438704955,3.01192,3320.2,3319.6,3.01238]
[1722438705166,3.01196,3320.1,3319.6,3.01238]
[1722438705370,3.01196,3320.1,3319.7,0.09840664]
[1722438705718,3.01196,3320.1,3319.5,0.301253]
[1722438706062,3.01196,3320.1,3319.6,0.0984247]
[1722438706926,3.01211,3320.0,3319.6,0.0984247]
[1722438708018,3.01192,3320.2,3319.6,3.1107747]
[1722438708424,3.01196,3320.1,3319.6,0.0984247]
[1722438708626,2.3832,3320.4,3319.6,0.0984247]
[1722438708627,3.01205,3320.0,3319.6,0.0984247]
[1722438708843,3.01209,3320.0,3319.6,0.0984247]
[1722438709644,3.0119,3320.2,3319.6,0.0984247]
[1722438709850,3.0119,3320.2,3319.6,3.1108147]
[1722438710157,5.39492,3320.4,3319.8,3.01222]
[1722438710310,8.40668,3320.4,3319.8,3.01222]
[1722438710511,3.01153,3320.6,3319.9,0.09837053]
[1722438710739,3.01153,3320.6,3320.0,3.01196]
[1722438711295,3.01143,3320.7,3320.1,0.09833442]
[1722438711439,3.0114,3320.8,3320.1,3.01187]
[1722438711643,3.0114,3320.8,3320.2,3.11016637]
[1722438712080,3.0114,3320.8,3320.3,3.01176]
[1722438712270,7.41,3320.9,3320.4,3.10995026]
[1722438712590,7.41,3320.9,3320.4,3.01167]
[1722438712789,7.41,3320.9,3320.2,3.01185]
[1722438713095,3.01159,3320.5,3320.1,0.540977]
[1722438713301,3.01169,3320.4,3320.2,0.09831637]
[1722438713485,3.01169,3320.4,3319.3,3.01266]
[1722438713486,3.01177,3320.3,3319.7,3.01231]
[1722438713790,6.02325,3320.5,3319.8,3.11073682]
[1722438713948,3.01145,3320.7,3320.0,3.01198]
[1722438714459,3.01133,3320.8,3320.2,3.01181]
[1722438714658,3.0115,3320.6,3320.3,0.09857126]
[1722438714881,3.0115,3320.6,3320.1,3.01193]
[1722438715087,3.0115,3320.6,3320.1,3.614321]
[1722438715289,3.01133,3320.8,3320.2,3.11045187]
[1722438715582,3.01133,3320.8,3320.2,0.09860187]
[1722438715797,3.0115,3320.6,3320.2,0.09860187]
[1722438716753,3.01136,3320.8,3320.2,3.01186]
[1722438716953,3.01142,3320.7,3320.3,0.09857126]
[1722438717379,3.01142,3320.7,3320.1,3.01188]
[1722438717584,3.01142,3320.7,3319.9,3.01207]
[1722438717894,3.01142,3320.7,3320.1,3.01195]
[1722438718329,6.0229,3320.7,3320.2,0.09859245]
[1722438718490,3.0116,3320.5,3320.2,0.09859245]
[1722438718697,3.01142,3320.7,3319.9,3.614513]
[1722438719007,3.01155,3320.6,3320.1,3.0119]
[1722438719178,10.42128,3320.9,3320.2,3.01181]
[1722438719380,10.42128,3320.9,3320.2,3.11039618]
[1722438719714,3.01132,3320.8,3320.2,3.01178]
[1722438720028,7.41,3320.9,3320.3,3.11026126]
[1722438720207,7.41,3320.9,3320.4,3.01167]
[1722438720579,7.41,3320.9,3320.5,0.09853516]
[1722438720981,3.01132,3320.8,3320.5,0.09853516]
[1722438721216,3.0115,3320.6,3320.5,0.09853516]
[1722438721532,6.02272,3320.8,3320.5,0.09853516]
[1722438721830,3.01132,3320.8,3320.2,3.01186]
[1722438721978,3.01132,3320.8,3320.0,3.01196]
[1722438722322,3.01157,3320.6,3320.0,0.301196]
[1722438722476,3.0116,3320.5,3320.1,0.09860737]
[1722438722921,3.01178,3320.3,3320.1,0.09860737]
[1722438723081,3.01186,3320.2,3319.5,5.50901]
[1722438723285,3.0121,3320.0,3319.6,0.09868196]
[1722438723484,3.0121,3320.0,3319.6,0.40979116]
[1722438723912,3.01213,3319.9,3319.6,0.40979116]
[1722438724114,3.01204,3320.1,3319.6,0.09868196]
[1722438724294,3.01207,3320.0,3319.5,3.01249]
[1722438724499,3.01207,3320.0,3319.6,0.09869452]
[1722438725031,3.01214,3319.9,3319.6,0.09869452]
[1722438725384,3.01214,3319.9,3319.4,3.01257]
[1722438725578,3.01214,3319.9,3319.7,0.09867647]
[1722438725794,3.01214,3319.9,3319.5,0.602517]
[1722438726031,3.01214,3319.9,3319.8,0.09865841]
[1722438726233,3.01214,3319.9,3319.5,0.602517]
[1722438726611,3.01225,3319.8,3319.6,0.09869452]
[1722438727717,6.02464,3319.7,3319.6,0.09869452]
[1722438727932,3.01257,3319.5,3318.7,7.28]
[1722438728151,3.01264,3319.4,3318.8,3.11195903]
[1722438728315,3.01247,3319.6,3318.9,0.3111959]
[1722438728722,3.01265,3319.4,3319.0,0.09901003]
[1722438729028,3.01266,3319.4,3318.7,6.02631]
[1722438729228,3.01266,3319.4,3319.1,0.09899197]
[1722438729475,3.01252,3319.5,3318.5,3.01335]
[1722438729476,3.0127,3319.3,3318.5,3.01336]
[1722438729596,6.0251,3319.5,3319.2,0.0989739]
[1722438729800,3.01252,3319.5,3318.8,3.01307]
[1722438730018,5.41416,3319.9,3318.8,0.602624]
[1722438730019,3.01223,3319.8,3318.8,0.602624]
[1722438730242,3.01259,3319.4,3318.9,0.0991317]
[1722438730612,3.01237,3319.7,3319.1,3.01286]
[1722438730939,3.01241,3319.6,3319.2,0.0990775]
[1722438731303,3.01259,3319.4,3319.2,0.0990775]
[1722438731502,3.01259,3319.4,3318.8,3.0131]
[1722438731503,3.01268,3319.3,3318.8,3.0131]
[1722438731736,3.01301,3319.0,3318.9,0.0991317]
[1722438731943,3.01301,3319.0,3318.3,3.01352]
[1722438732148,3.01301,3319.0,3318.4,3.11267204]
[1722438732352,7.616061,3319.9,3318.5,3.01334]
[1722438732353,3.01264,3319.4,3318.5,3.01334]
[1722438732500,3.01282,3319.2,3318.6,3.01325]
[1722438732704,3.01295,3319.0,3318.7,0.09916783]
[1722438733016,3.01282,3319.2,3318.7,0.09916783]
[1722438733638,3.01292,3319.1,3318.7,0.09916783]
[1722438734507,3.01253,3319.5,3318.8,3.01307]
[1722438734713,3.01253,3319.5,3319.0,3.01294]
[1722438734954,6.02472,3319.7,3319.1,0.09909556]
[1722438735157,3.01232,3319.7,3319.1,0.41029912]
[1722438735457,3.01251,3319.5,3319.1,0.41029912]
[1722438735657,3.01261,3319.4,3319.1,0.09909556]
[1722438735832,3.01268,3319.3,3319.1,0.09909556]
[1722438736027,3.01268,3319.3,3318.8,3.01309]
[1722438736240,3.01268,3319.3,3319.2,0.09952957]
[1722438736556,3.01246,3319.6,3319.2,0.09952957]
[1722438736557,3.01259,3319.4,3319.2,0.09952957]
[1722438736761,3.01259,3319.4,3318.8,3.01308]
[1722438736912,3.01259,3319.4,3319.3,0.0995115]
[1722438737113,3.01259,3319.4,3318.8,3.01308]
[1722438737466,3.01259,3319.4,3318.9,0.09958376]
[1722438738149,3.01276,3319.3,3318.9,0.09958376]
[1722438739153,3.01261,3319.4,3318.9,3.11261376]
[1722438739349,3.01241,3319.6,3319.0,3.01294]
[1722438739665,3.01208,3320.0,3319.3,3.01261]
[1722438739814,6.0242,3320.0,3319.1,3.11235763]
[1722438740019,6.0242,3320.0,3319.4,3.11207344]
[1722438740020,3.01208,3320.0,3319.4,3.11207344]
[1722438740215,3.01208,3320.0,3319.2,3.01277]
[1722438740216,3.01216,3319.9,3319.2,3.01277]
[1722438740529,3.01223,3319.8,3319.3,0.4007885]
[1722438740719,3.01242,3319.6,3319.3,0.0995115]
[1722438740911,3.01223,3319.8,3319.2,3.01276]
[1722438741111,3.01223,3319.8,3319.3,0.0995115]
[1722438741355,3.01223,3319.8,3319.2,3.01271]
[1722438741555,3.01232,3319.7,3319.3,0.0995115]
[1722438741756,3.01237,3319.7,3318.9,0.31126138]
[1722438741940,3.01237,3319.7,3319.1,3.01278]
[1722438742145,3.01229,3319.8,3319.2,0.09952957]
[1722438742458,3.01229,3319.8,3319.3,3.01267]
[1722438743023,3.01229,3319.8,3319.0,0.33243514]
[1722438743344,3.01232,3319.7,3319.2,3.01277]
[1722438743659,3.01232,3319.7,3319.3,0.0995115]
[1722438744221,3.01217,3319.9,3319.3,0.0995115]
[1722438744419,3.01217,3319.9,3319.4,3.01259]
[1722438745043,3.01217,3319.9,3319.3,0.31122815]
[1722438745222,3.01233,3319.7,3319.2,3.01271]
[1722438745782,3.01241,3319.6,3319.3,0.0995115]
[1722438746155,3.01233,3319.7,3319.1,3.01286]
[1722438746353,3.01233,3319.7,3319.2,0.09952957]
[1722438746526,3.01233,3319.7,3319.2,3.11227957]
[1722438746727,3.01217,3319.9,3319.2,3.72479853]
[1722438747087,3.01217,3319.9,3319.4,3.01257]
[1722438747451,3.01217,3319.9,3319.5,0.09934662]
[1722438747623,3.01199,3320.1,3319.5,3.11179662]
[1722438747818,9.61972689,3320.2,3319.5,0.15959388]
[1722438747819,7.41,3320.2,3319.5,0.15959388]
[1722438748379,3.01165,3320.5,3319.8,3.01222]
[1722438748565,5.22114689,3320.7,3320.1,3.01194]
[1722438748748,3.01142,3320.7,3320.1,3.01194]
[1722438749080,3.01142,3320.7,3320.2,0.09922022]
[1722438749081,3.01153,3320.6,3320.2,0.09922022]
[1722438749373,3.01153,3320.6,3320.1,3.01194]
[1722438749516,7.41,3320.8,3320.2,3.01186]
[1722438749728,7.41,3320.8,3320.4,3.01167]
[1722438750165,7.41,3320.8,3320.5,0.09916607]
[1722438750943,7.41,3320.8,3320.4,3.01167]
[1722438751152,7.41,3320.8,3320.2,6.324856]
[1722438751347,10.42133,3320.8,3320.3,3.11080463]
[1722438751545,2.20933761,3321.3,3320.8,3.0113]
[1722438751795,10.42076,3321.5,3320.8,3.0113]
[1722438752074,3.01079,3321.4,3320.8,3.0113]
[1722438752274,3.01079,3321.4,3320.9,0.09894634]
[1722438752488,10.42075,3321.5,3320.9,0.09894634]
[1722438752635,1.284015,3321.4,3320.8,3.0113]
[1722438752836,7.41,3321.5,3321.1,3.01104]
[1722438753052,7.41,3321.5,3321.2,3.01094]
[1722438753411,5.21957761,3322.0,3321.3,0.09867647]
[1722438753686,3.01035,3321.9,3321.3,3.10948647]
[1722438753834,3.01035,3321.9,3321.3,3.01081]
[1722438754036,3.01035,3321.9,3321.4,0.09856117]
[1722438754260,3.01035,3321.9,3321.3,3.01081]
[1722438755247,10.42014,3322.1,3321.5,3.01068]
[1722438755830,10.42014,3322.1,3321.6,0.0985251]
[1722438756059,10.42014,3322.1,3321.6,3.1090951]
[1722438756060,7.41,3322.1,3321.6,3.1090951]
[1722438756291,10.42022,3322.1,3321.4,3.0107]
[1722438756509,3.01023,3322.0,3321.7,0.09836278]
[1722438756665,7.41,3322.1,3321.5,3.01065]
[1722438757012,10.42014,3322.1,3321.6,0.09838081]
[1722438757160,3.01023,3322.0,3321.6,0.09838081]
[1722438757365,3.01032,3321.9,3321.3,0.60218]
[1722438757607,3.01032,3321.9,3321.4,0.09776109]
[1722438757965,3.01032,3321.9,3321.3,3.61303]
[1722438758166,3.01032,3321.9,3321.4,0.09776109]
[1722438758706,10.42014,3322.1,3321.5,3.01066]
[1722438759202,7.41,3322.1,3321.6,0.09772501]
[1722438759406,7.41,3322.1,3321.7,3.01045]
[1722438760064,7.41,3322.1,3321.8,0.09768894]
[1722438760262,5.36492,3322.5,3321.9,3.01032]
[1722438760462,3.00982,3322.5,3321.9,3.01032]
[1722438760694,3.00982,3322.5,3322.0,0.09765288]
[1722438760905,3.00992,3322.4,3322.0,0.09765288]
[1722438761422,3.01047,3321.8,3321.2,3.01091]
[1722438761716,3.0104,3321.9,3321.3,3.01083]
[1722438761923,3.01048,3321.8,3321.3,0.09777913]
[1722438762102,3.0106,3321.6,3321.3,0.09777913]
[1722438762307,3.0106,3321.6,3321.0,3.01113]
[1722438762634,3.0106,3321.6,3321.1,0.602228]
[1722438762792,3.01046,3321.8,3321.1,3.71108321]
[1722438763128,3.01039,3321.9,3321.2,3.01095]
[1722438763291,3.01059,3321.6,3321.1,0.70004321]
[1722438763475,3.01059,3321.6,3321.3,0.09777913]
[1722438763677,3.01059,3321.6,3320.4,8.68166]
[1722438763678,0.602108,3321.6,3321.2,0.09779717]
[1722438763879,6.02136,3321.5,3321.4,0.09776109]
[1722438764333,3.01068,3321.5,3320.2,2.2545]
[1722438764625,6.01024,3322.0,3321.0,3.01106]
[1722438764626,7.41,3321.7,3321.0,3.01106]
[1722438764819,7.41,3321.7,3321.1,3.01097]
[1722438765029,3.0106,3321.6,3321.1,0.39570091]
[1722438765379,10.42056,3321.7,3321.1,0.39570091]
[1722438765718,3.01061,3321.6,3321.1,3.40668091]
[1722438766051,3.01083,3321.4,3321.1,0.09460391]
[1722438766397,3.01066,3321.6,3320.5,3.01153]
[1722438766752,3.0111,3321.1,3320.5,3.01153]
[1722438766925,3.01091,3321.3,3320.7,3.01141]
[1722438767294,3.01091,3321.3,3320.8,0.09470508]
[1722438767705,7.41,3321.7,3320.8,0.09470508]
[1722438767909,3.01111,3321.1,3320.8,0.09470508]
[1722438768117,3.0113,3320.9,3320.3,3.01177]
[1722438768328,7.41,3321.7,3320.4,3.0116]
[1722438768329,3.01119,3321.0,3320.4,3.0116]
[1722438768538,3.01119,3321.0,3320.4,3.10649957]
[1722438768848,3.01126,3320.9,3320.4,0.09489957]
[1722438769212,3.01126,3320.9,3319.8,2.4972]
[1722438769535,3.01126,3320.9,3320.1,3.01195]
[1722438769698,3.01126,3320.9,3320.3,3.01176]
[1722438769893,7.41,3321.4,3320.7,3.01132]
[1722438770108,7.41,3321.4,3320.7,3.312452]
[1722438770318,10.42083,3321.4,3320.8,3.10616011]
[1722438770699,3.01102,3321.2,3320.8,0.09489011]
[1722438771168,3.01123,3320.9,3320.1,3.01191]
[1722438771374,7.41,3321.4,3319.9,3.01209]
[1722438771375,3.01155,3320.6,3320.2,0.09503291]
[1722438771576,3.01174,3320.4,3319.8,0.14791892]
[1722438771779,3.01168,3320.4,3319.8,3.16008892]
[1722438772085,3.01178,3320.3,3319.9,0.09507766]
[1722438772325,2.4629,3320.9,3319.9,0.09507766]
[1722438772326,3.01187,3320.2,3319.9,0.09507766]
[1722438772493,3.01196,3320.1,3319.9,0.09507766]
[1722438772790,3.01196,3320.1,3320.0,0.09506588]
[1722438772966,3.01196,3320.1,3319.6,3.01239]
[1722438773148,3.01179,3320.3,3319.7,3.10743005]
[1722438773765,3.01171,3320.4,3319.8,3.01215]
[1722438773966,3.01171,3320.4,3319.9,0.09508393]
[1722438774487,3.0118,3320.3,3319.9,0.09508393]
[1722438774632,6.02365,3320.3,3319.9,0.09508393]
[1722438774843,2.4629,3320.9,3320.1,3.01194]
[1722438775043,3.01169,3320.4,3319.9,3.01207]
[1722438775456,3.01164,3320.5,3320.0,0.09526983]
[1722438776474,3.01178,3320.3,3320.0,0.09526983]
[1722438776788,3.01178,3320.3,3319.8,3.01222]
[1722438777083,3.01178,3320.3,3319.9,0.09527533]
[1722438777449,3.01192,3320.2,3319.9,0.09527533]
[1722438777796,3.01192,3320.2,3319.6,3.01235]
[1722438777973,3.01192,3320.2,3319.1,5.44384]
[1722438777974,3.01175,3320.4,3319.7,3.71010458]
[1722438778144,3.01175,3320.4,3319.8,3.01216]
[1722438778343,3.01175,3320.4,3319.9,0.09527847]
[1722438778604,3.01164,3320.5,3319.9,0.09527847]
[1722438778605,3.01164,3320.5,3319.9,3.10739847]
[1722438778884,3.01164,3320.5,3319.9,3.77956732]
[1722438779703,3.01126,3320.9,3319.9,3.03959732]
[1722438779862,10.42094,3321.3,3320.4,3.01167]
[1722438780073,3.01115,3321.0,3320.3,3.01176]
[1722438780361,3.01126,3320.9,3320.4,0.0954737]
[1722438780975,3.01126,3320.9,3320.1,3.01191]
[1722438781301,3.01126,3320.9,3320.2,0.3967008]
[1722438781467,3.01126,3320.9,3320.4,3.01167]
[1722438781668,3.01109,3321.1,3320.4,3.01162]
[1722438781867,3.01109,3321.1,3320.5,0.09545565]
[1722438782071,3.01093,3321.3,3320.5,0.15568378]
[1722438782268,3.01084,3321.4,3320.8,3.01131]
[1722438782461,3.01086,3321.3,3320.6,6.33960238]
[1722438782801,3.01123,3320.9,3320.2,0.301191]
[1722438782983,3.01159,3320.5,3320.0,3.01196]
[1722438783163,3.01164,3320.5,3319.9,3.01213]
[1722438783359,3.01164,3320.5,3319.8,3.01222]
[1722438783360,3.01164,3320.5,3320.0,3.01204]
[1722438783589,3.01169,3320.4,3319.8,3.01222]
[1722438784052,3.01178,3320.3,3319.8,3.01222]
[1722438784261,3.01164,3320.5,3319.9,3.01213]
[1722438784458,3.01183,3320.3,3319.7,3.01229]
[1722438784694,3.01183,3320.3,3319.7,3.539489]
[1722438784900,3.01183,3320.3,3319.7,3.539439]
[1722438785100,3.01169,3320.4,3319.8,3.01216]
[1722438785611,3.01187,3320.2,3319.7,0.527199]
[1722438785813,3.01177,3320.3,3319.7,3.539509]
[1722438786014,3.01177,3320.3,3319.8,3.01216]
[1722438786318,3.01177,3320.3,3319.7,0.527199]
[1722438786479,3.01191,3320.2,3319.5,3.01245]
[1722438786803,3.01191,3320.2,3319.7,3.01226]
[1722438787287,3.01173,3320.4,3319.8,3.01221]
[1722438787662,3.01179,3320.3,3319.7,3.01226]
[1722438787908,3.01155,3320.6,3319.8,3.01222]
[1722438788090,6.02313,3320.6,3319.9,3.01212]
[1722438788296,3.01155,3320.6,3320.0,3.01198]
[1722438788664,5.75966,3320.7,3320.1,3.01193]
[1722438788865,0.24984,3320.7,3320.2,3.01185]
[1722438789074,3.01136,3320.8,3320.2,3.01185]
[1722438789308,2.3103,3321.1,3320.2,3.01185]
[1722438790000,3.01124,3320.9,3320.4,3.01166]
[1722438790208,3.01124,3320.9,3320.2,6.02363]
[1722438790418,3.01132,3320.8,3320.0,3.012]
[1722438790683,3.01155,3320.6,3320.0,3.54062]
[1722438790920,5.31326,3320.7,3319.8,3.01218]
[1722438791067,3.01164,3320.5,3320.0,3.01204]
[1722438791472,3.01146,3320.7,3320.0,3.01197]
[1722438791724,3.0115,3320.6,3320.1,3.01195]
[1722438791918,3.0115,3320.6,3320.0,3.01197]
[1722438792215,3.01155,3320.6,3319.8,3.01218]
[1722438792517,3.01168,3320.4,3319.9,6.325418]
[1722438792718,3.01168,3320.4,3319.9,3.01207]
[1722438792874,5.21688258,3321.0,3320.2,3.01185]
[1722438793076,3.01139,3320.8,3320.2,3.01185]
[1722438793281,2.91939,3320.8,3320.2,3.0118]
[1722438793773,3.01118,3321.0,3320.2,3.0118]
[1722438794089,3.01146,3320.7,3320.1,3.01193]
[1722438794683,3.0115,3320.6,3320.1,3.01193]
[1722438795116,6.02277,3320.8,3320.2,3.10411923]
[1722438795319,3.01137,3320.8,3320.3,3.01177]
[1722438795684,3.01137,3320.8,3320.4,0.09223312]
[1722438796223,3.01137,3320.8,3320.2,3.01185]
[1722438796725,3.01143,3320.7,3320.3,0.0921539]
[1722438797024,3.01132,3320.9,3320.3,0.0921539]
[1722438797171,3.01129,3320.9,3320.3,0.0921539]
[1722438797393,3.01168,3320.4,3320.3,0.0921539]
[1722438797736,3.01225,3319.8,3319.3,3.01262]
[1722438797888,3.01225,3319.8,3319.1,3.01278]
[1722438798094,3.01225,3319.8,3319.4,0.09230385]
[1722438798095,3.01237,3319.7,3319.4,0.09230385]
[1722438798405,3.01237,3319.7,3319.5,0.09228579]
[1722438798717,3.01219,3319.9,3319.3,3.01267]
[1722438798932,3.01219,3319.9,3319.6,0.09226773]
[1722438799092,3.01219,3319.9,3319.4,3.01258]
[1722438799290,3.01219,3319.9,3319.7,0.09224968]
[1722438799549,3.01233,3319.7,3319.2,6.02542]
[1722438799693,3.01219,3319.9,3319.8,0.09223162]
[1722438799891,3.01219,3319.9,3319.3,3.01263]
[1722438800404,3.01237,3319.7,3319.4,0.09230385]
[1722438800731,6.02477,3319.7,3319.1,3.01278]
[1722438800930,3.01241,3319.6,3319.5,0.09228579]
[1722438801168,3.01241,3319.6,3319.1,3.01278]
[1722438801345,3.01241,3319.6,3319.5,0.09228579]
[1722438801499,3.01241,3319.6,3319.1,3.01278]
[1722438801698,3.01241,3319.6,3319.5,0.09228579]
[1722438801898,3.01241,3319.6,3319.0,3.01289]
[1722438802107,3.01241,3319.6,3319.5,0.09228579]
[1722438802740,3.01241,3319.6,3319.0,3.01294]
[1722438802892,3.01241,3319.6,3319.5,0.09228579]
[1722438803094,3.01237,3319.7,3319.2,3.01276]
[1722438803298,3.01237,3319.7,3319.5,0.09228579]
[1722438803493,3.01237,3319.7,3319.2,3.01276]
[1722438803696,3.01237,3319.7,3319.6,0.09226773]
[1722438803895,3.01237,3319.7,3319.2,3.01276]
[1722438804536,3.01217,3319.9,3319.3,3.10495192]
[1722438804537,3.01224,3319.8,3319.3,3.10495192]
[1722438804717,4.62065455,3320.2,3319.3,0.09232192]
[1722438805039,3.01252,3319.5,3319.3,0.09232192]
[1722438805396,3.01237,3319.7,3318.6,4.9466]
[1722438805598,3.01241,3319.6,3319.0,3.01289]
[1722438805797,3.01241,3319.6,3319.1,0.09235804]